Cogmind - Beta 16.1 @@@ ROGUE MODE // 2026.06.21 @ 15:53:09 Player: Akl Result: Destroyed by G-47 Trooper with Particle Gun Performance ------------- Evolutions (2) 1000 Regions Visited (3) 600 Robots Destroyed (25) 125 Value Destroyed (801) 801 Prototype IDs (0) 0 Alien Tech Used (0) 0 Bonus (0) 0 TOTAL SCORE: 2526 Bonus ------- None Cogmind --------- Core Integrity 0/550 Matter 300/300 Energy 299/300 System Corruption 0% Temperature Cool (9) Movement Core (250) Ox4 Location -8/Materials Parts ------- > --- POWER (2) -------- (None) > --- PROPULSION (2) --- (None) > --- UTILITY (5) ------ Medium Storage Unit Large Battery Machine Analyzer > --- WEAPON (2) ------- (None) > --- INVENTORY (10) --- Light Ion Engine Heat Sink Medium Storage Unit Large Battery (200) Terrain Scan Processor Grenade Launcher Peak State ------------ > --- POWER ------------ Light Nuclear Core Light Nuclear Core > --- PROPULSION ------- Aluminum Leg Aluminum Leg > --- UTILITY ---------- Medium Storage Unit Large Battery Machine Analyzer Improved Terrain Scanner ECM Suite > --- WEAPON ----------- Particle Gun Plasma Cutter > --- INVENTORY -------- Light Ion Engine Heat Sink Medium Storage Unit Large Battery Terrain Scan Processor Grenade Launcher [Rating: 21] Favorites ----------- Power Ion Engine Engine Ion Engine Power Core Light Nuclear Core Propulsion Aluminum Leg Treads Light Treads Leg Aluminum Leg Utility Small Storage Unit Device ECM Suite Storage Small Storage Unit Processor Machine Analyzer Protection Medium Armor Plating Weapon Light Assault Rifle Energy Gun Medium Laser Ballistic Gun Light Assault Rifle Ballistic Cannon Assault Cannon Launcher Grenade Launcher Special Weapon Plasma Cutter Build | -11 -10 -9 -8 ------- Run | Yrd Mat Mat Mat Slots Evolved 4 | . . 2 2 Power 1 | . . 1 . Propulsion . | . . . . Utility 3 | . . 1 2 Weapon . | . . . . Parts Attached 41 | 6 8 15 12 Power 10 | 1 1 4 4 Engine 7 | 1 . 4 2 Core 3 | . 1 . 2 Reactor . | . . . . Propulsion 9 | 2 2 4 1 Treads 2 | 2 . . . Leg 7 | . 2 4 1 Wheel . | . . . . Hover . | . . . . Flight . | . . . . Utility 10 | 1 2 3 4 Device 4 | . 2 1 1 Storage 4 | 1 . 1 2 Processor 1 | . . . 1 Hackware . | . . . . Protection 1 | . . 1 . Artifact . | . . . . Weapon 12 | 2 3 4 3 Energy Gun 5 | . 2 2 1 Energy Cannon . | . . . . Ballistic Gun 4 | 2 . 2 . Ballistic Cannon 1 | . . . 1 Launcher 1 | . 1 . . Special Weapon 1 | . . . 1 Impact Weapon . | . . . . Slashing Weapon . | . . . . Piercing Weapon . | . . . . Special Melee Weapon . | . . . . Unidentified Prototypes . | . . . . Parts Lost 16 | . . 7 9 Power 6 | . . 4 2 Propulsion 5 | . . 2 3 Utility 3 | . . 1 2 Weapon 2 | . . . 2 Highest Loss Streak 8 | . . 2 8 To Critical Strikes . | . . . . Average Backups 5 | 3 5 7 5 Power 1 | . 1 1 1 Propulsion . | 1 1 . . Utility 1 | . 1 2 2 Weapon 1 | . 1 2 1 Tool/Special . | . . . . Unused Backups 2 | . . . 2 Power . | . . . . Propulsion . | . . . . Utility 2 | . . . 2 Weapon . | . . . . Tool/Special . | . . . . Average Slot Usage (%) 89 | . 96 87 88 Engine 11 | . 9 16 5 Core 4 | . 3 . 10 Treads 4 | . 21 . . Leg 15 | . 6 20 14 Device 14 | . 11 11 20 Storage 15 | . 14 15 18 Energy Gun 12 | . 7 17 8 Ballistic Gun 6 | . 18 3 . Ballistic Cannon 1 | . . . 5 Launcher 1 | . 2 1 . Peak Build Rating 21 | 6 11 13 21 Average Rating 10 | 5 7 10 15 On Entrance 6 | . 6 11 8 Avg Prop Armor Cover (%) . | . . . . Naked Turns . | . . . . Heaviest Build 31 | 13 17 24 31 Greatest Support 40 | 40 40 20 20 Greatest Overweight (x) 4 | . . 1 4 Average Overweight (x) . | . . . 1 Largest Inventory Capacity 10 | 8 8 8 10 Average Capacity 8 | 7 8 8 8 Most Carried 8 | 4 8 8 7 Average Carried 5 | 3 5 7 5 Final Capacity 10 | 8 8 8 10 Final Carried 7 | 4 6 7 6 Class Distribution -------------------- 83% | Mutant 16% | Scavenger-Mutant Dominant Class ---------------- Mutant | -10/Materials Mutant | -9/Materials Mutant | -8/Materials Resources | -11 -10 -9 -8 ----------- Run | Yrd Mat Mat Mat Matter Collected 823 | 177 182 311 153 Remotely . | . . . . Salvage Created 841 | . 122 583 136 Parts 41 | . 7 30 4 Haulers Intercepted . | . . . . Recyclers Shooed . | . . . . Parts Field Recycled . | . . . . Retrieved Matter . | . . . . Parts Self-Destructed . | . . . . Prevented . | . . . . Parts Restored . | . . . . Kills | -11 -10 -9 -8 ------- Run | Yrd Mat Mat Mat Combat Hostiles Destroyed 23 | . 4 14 5 Guns 13 | . 2 9 2 Cannons 3 | . . . 3 AOE 5 | . 2 3 . Classes Destroyed 5 | . 2 3 . Worker 1 | . 1 . . Watcher 1 | . . 1 . Swarmer 5 | . . 3 2 Grunt 14 | . 4 7 3 Sentry 4 | . . 4 . Best Kill Streak 5 | . 5 5 5 Combat Bots Only 5 | . 4 5 5 Max Kills in Single Turn 2 | . 1 2 1 Gunslinging . | . . . . Exploded 2 | . 1 2 . Melee . | . . . . Uniques/NPCs Destroyed . | . . . . Combat | -11 -10 -9 -8 -------- Run | Yrd Mat Mat Mat Hostile Shots Fired 273 | . 18 137 118 Missed 64 | . 3 36 25 Hits 209 | . 15 101 93 Projectile 209 | . 15 101 93 Critical Strikes 8 | . . 5 3 Damage Taken 2857 | . 289 1206 1362 Core 792 | . 10 229 553 Absorbed by Shields . | . . . . Core Remaining (%) 79 | 100 96 42 . Volleys Fired 99 | . 14 58 27 Largest 2 | . 2 2 2 Hottest 95 | . 90 95 85 Shots Fired 174 | . 21 107 46 Gun 145 | . 13 105 27 Cannon 15 | . . . 15 Launcher 10 | . 8 2 . Special 4 | . . . 4 Kinetic 62 | . 8 39 15 Thermal 80 | . 2 47 31 Explosive 10 | . 8 2 . Electromagnetic 22 | . 3 19 . Robot Hit Streak 11 | . 4 9 11 Robot Miss Streak 5 | . 5 4 3 Penetration Max . | . . . . Secondary Targets 5 | . 1 4 . Max Gunslinging Chain 1 | . 1 1 . Shots Hit Robots 92 | . 5 61 26 Core Hits 46 | . 11 22 13 Critical Kills 1 | . . 1 . Critical Parts Destroyed . | . . . . Critical Strikes 5 | . . 4 1 Burn 3 | . . 3 . Destroy 1 | . . 1 . Blast 1 | . . . 1 Melee Attacks . | . . . . Impact . | . . . . Slashing . | . . . . Piercing . | . . . . Sneak Attacks . | . . . . Combat Hostiles . | . . . . Follow-up Attacks . | . . . . Damage Inflicted 1548 | . 291 815 442 Guns 865 | . 53 632 180 Cannons 231 | . . . 231 Explosions 421 | . 238 183 . Melee . | . . . . Ramming 10 | . . . 10 Kinetic 459 | . 14 214 231 Thermal 561 | . 26 334 201 Explosive 421 | . 238 183 . Electromagnetic 97 | . 13 84 . Impact . | . . . . Slashing . | . . . . Piercing . | . . . . Highest Corruption 1 | . 1 . . Average Corruption 1 | . 1 . . Corruption Purged . | . . . . Corruption Blocked . | . . . . Overload Shots . | . . . . Overflow Damage 11 | . . 10 1 Projectiles 1 | . . . 1 Explosions 10 | . . 10 . Melee . | . . . . Knockbacks 3 | . . . 3 Impact . | . . . . Kinetic 3 | . . . 3 Secondary . | . . . . Self-Inflicted Damage 108 | . 107 . 1 Shots 4 | . 4 . . Rammed 3 | . . . 3 Targets Rammed 5 | . . . 5 Kicked 2 | . . . 2 Crushed . | . . . . Highest Temperature 341 | . 78 341 240 Average Temperature 120 | . 30 187 64 Received Heat Transfer 1332 | . 105 525 702 Effects 3 | . . 3 . Shutdowns 1 | . . 1 . Energy Bleed 2 | . . 2 . Siege Activations . | . . . . Martial Activations . | . . . . Shielding Activations . | . . . . Robots Disrupted . | . . . . Combat Hostiles . | . . . . Robots Corrupted . | . . . . Combat Hostiles . | . . . . Parts Fried . | . . . . Impact Corruptions . | . . . . Robots Melted 2 | . . 2 . Combat Hostiles 2 | . . 2 . Parts Melted 7 | . . 7 . Heat Transferred 1708 | . 74 1138 496 Parts Sabotaged . | . . . . Parts Stolen . | . . . . Parts Stripped . | . . . . Power Chain Reactions . | . . . . Alert | -11 -10 -9 -8 ------- Run | Yrd Mat Mat Mat Maximum Alert Level . | . . . . Low Security (%) 100 | 100 100 100 100 Level 1 . | . . . . Level 2 . | . . . . Level 3 . | . . . . Level 4 . | . . . . Level 5 . | . . . . High Security . | . . . . Max Security . | . . . . Peak Influence 174 | . 120 174 93 Initial 40 | . . 40 24 Average 46 | . 35 82 26 Influence Increases 665 | . 159 381 125 Destroy 0b10 Robot/C 460 | . 80 280 100 Destroy 0b10 Robot/NC 10 | . 5 5 . Destroy Leader 122 | . 20 82 20 Successful Hack 2 | . . . 2 Destroy Structure 71 | . 54 14 3 Influence Decreases 665 | . 61 420 184 Entered New Map 93 | . . 58 35 Time Decay 487 | . 61 310 116 Lost Part 85 | . . 52 33 Squads Dispatched 4 | . 1 1 2 Investigation 2 | . . 1 1 Extermination . | . . . . Reinforcement 2 | . 1 . 1 Assault . | . . . . Garrison . | . . . . Intercept . | . . . . Searches Triggered . | . . . . Construction Impeded . | . . . . Haulers Reinforced . | . . . . Active Scanning Responses . | . . . . Cargo Convoy Interrupts . | . . . . Stealth | -11 -10 -9 -8 --------- Run | Yrd Mat Mat Mat Distress Signals 4 | . . 3 1 Communications Jammed . | . . . . Distress Signals . | . . . . Times Spotted 47 | . 5 21 21 Peak Tracking Total 7 | . 4 7 7 Tactical Retreats 3 | . . . 3 ECM-based Alert Blocks 6 | . . . 6 Traps | -11 -10 -9 -8 ------- Run | Yrd Mat Mat Mat Traps Triggered 2 | . 1 1 . Indirectly . | . . . . Trap Hack Attempts . | . . . . Triggered . | . . . . Disarmed . | . . . . Reprogrammed . | . . . . Reused . | . . . . Traps Extracted . | . . . . Installed . | . . . . Triggered . | . . . . Machines | -11 -10 -9 -8 ---------- Run | Yrd Mat Mat Mat Machines Disabled . | . . . . Max in Single Turn . | . . . . Machines Repaired . | . . . . Machines Dismantled . | . . . . Machines Sabotaged . | . . . . Overloaded Fab Kills . | . . . . Hacking | -11 -10 -9 -8 --------- Run | Yrd Mat Mat Mat Machines Accessed 2 | . . . 2 Terminals 1 | . . . 1 Fabricators . | . . . . Repair Stations . | . . . . Recycling Units . | . . . . Scanalyzers 1 | . . . 1 Garrison Access . | . . . . Total Hacks 7 | . . . 7 Successful 7 | . . . 7 Failed . | . . . . Catastrophic . | . . . . Database Lockouts . | . . . . Manual 1 | . . . 1 Terminals 2 | . . . 2 Fabricators . | . . . . Repair Stations . | . . . . Recycling Units . | . . . . Scanalyzers 5 | . . . 5 Garrison Access . | . . . . Terminal Hacks 2 | . . . 2 Record 2 | . . . 2 Fabricator Hacks . | . . . . Repair Station Hacks . | . . . . Recycling Unit Hacks . | . . . . Scanalyzer 5 | . . . 5 Insert Component 2 | . . . 2 Analyze 3 | . . . 3 Garrison Access Hacks . | . . . . Unauthorized Hacks . | . . . . Terminals . | . . . . Fabricators . | . . . . Repair Stations . | . . . . Recycling Units . | . . . . Scanalyzers . | . . . . Garrison Access . | . . . . Data Cores Recovered . | . . . . Used . | . . . . Hacking Detections 2 | . . . 2 Full Trace Events 1 | . . . 1 Feedback Events . | . . . . Feedback Blocked . | . . . . Robot Schematics Acquired . | . . . . Robots Built . | . . . . Authchips . | . . . . Time . | . . . . Total Robot Build Rating . | . . . . Part Schematics Acquired 2 | . . . 2 Parts Built . | . . . . Authchips . | . . . . Time . | . . . . Total Part Build Rating . | . . . . Part Studies Acquired . | . . . . Parts Repaired . | . . . . Time . | . . . . Parts Recycled . | . . . . Recycled Matter . | . . . . Retrieved Matter . | . . . . Retrieved Components . | . . . . Parts Scanalyzed 2 | . . . 2 Part Schematics Acquired 2 | . . . 2 Parts Damaged . | . . . . Bothacking | -11 -10 -9 -8 ------------ Run | Yrd Mat Mat Mat Used RIF Installer . | . . . . Robots Hacked . | . . . . Non-combat . | . . . . Combat . | . . . . Robot Hacks Applied . | . . . . Relay Couplers Released . | . . . . Fabnet Peak Effective % . | . . . . Robots Rewired . | . . . . Allies Hacked . | . . . . Hacks Repelled . | . . . . Allies | -11 -10 -9 -8 -------- Run | Yrd Mat Mat Mat Total Allies . | . . . . Largest Group . | . . . . Highest-Rated Group . | . . . . Highest-Rated Ally . | . . . . Total Orders . | . . . . Ally Attacks . | . . . . Total Damage . | . . . . Kills . | . . . . Allies Corrupted . | . . . . Allies Melted . | . . . . Intel | -11 -10 -9 -8 ------- Run | Yrd Mat Mat Mat Active Infowar (turns) 718 | . 205 130 383 Terrain 223 | . . . 223 Machine Analysis 97 | . . . 97 ECM 714 | . 205 130 379 Robot Analysis Total . | . . . . Derelict Logs Recovered . | . . . . Drone Launches . | . . . . Drone Recoveries . | . . . . Exploration | -11 -10 -9 -8 ------------- Run | Yrd Mat Mat Mat Turns Passed 1740 | 307 327 723 383 Spaces Moved 820 | 177 184 326 133 Core 20 | 14 . . 6 Treads 290 | 163 127 . . Legs 510 | . 57 326 127 Wheels . | . . . . Hover . | . . . . Flight . | . . . . Fastest Speed 50 | 50 120 120 120 Average Speed 161 | 151 147 159 197 Slowest Speed 260 | 160 160 190 260 Overloaded Moves . | . . . . Propulsion Burnouts . | . . . . Robots Hopped . | . . . . Potential Cave-ins . | . . . . Cave-ins Triggered . | . . . . Exploration Rate (%) 19 | 7 29 29 13 Regions Visited 3 Branch Regions . Pre-discovered Areas . | . . . . Known Exits Taken . | . . . . Unknown Exits Taken 3 | 1 1 1 . Scrap Searched . | . . . . Spaces Dug . | . . . . Terrain Destroyed 68 | . 53 12 3 Melee . | . . . . Projectile 3 | . . . 3 AOE 65 | . 53 12 . Terrain Rammed . | . . . . Walls Destroyed . | . . . . Machines Disabled . | . . . . Actions | -11 -10 -9 -8 --------- Run | Yrd Mat Mat Mat Total 1059 | 216 217 428 198 Wait 26 | 24 . . 2 Move 817 | 176 183 325 133 Hop . | . . . . Pick Up 44 | 10 7 17 10 Fast Attach . | . . . . Attach 25 | 6 2 10 7 Detach 1 | . . . 1 Swap 23 | . 7 10 6 Drop 19 | . 4 8 7 Fire 99 | . 14 58 27 Melee . | . . . . Ram 3 | . . . 3 Kick 2 | . . . 2 Crush . | . . . . Escape Stasis . | . . . . Rewire . | . . . . Trap . | . . . . Miscellaneous . | . . . . Route ------- -11/Scrapyard -10/Materials -9/Materials (discovered 2 exits: *Mat / [*Min]) -8/Materials History --------- Turn | Location | Event 18 | -11/Scrapyard | Discovered new exit (range 14) 308 | -11/Scrapyard | Entered Materials 309 | -10/Materials | Build established: Mutant 621 | -10/Materials | Discovered new exit (range 8) 635 | -10/Materials | Entered another Materials area 635 | -9/Materials | Evolved 2 slots: Power x1, Utility x1 815 | -9/Materials | Discovered new exit (range 15) 1201 | -9/Materials | Core integrity fell below 50% 1344 | -9/Materials | Discovered new exit (range 13) 1358 | -9/Materials | Entered another Materials area 1358 | -8/Materials | Evolved 2 slots: Utility x2 1710 | -8/Materials | Core integrity fell below 50% 1732 | -8/Materials | Core integrity fell below 20% 1741 | -8/Materials | Destroyed by G-47 Trooper with Particle Gun Last Messages --------------- 01647_ K-01 Serf collects debris. 01664_ K-01 Serf cleans the TF Node. 01670_ >> Machine Analyzer network decryption results: 01670_ Terminal x2 01684_ Aluminum Leg destroyed. 01689_ Imp. Terrain Scanner destroyed. 01690_ Lgt. Nuclear Core destroyed. 01701_ C-30 ARC bursts open, deploying its payload. 01701_ G-50 Soldier unfolds itself. 01701_ G-47 Trooper unfolds itself. 01703_ Aluminum Leg destroyed. 01717_ Plasma Cutter destroyed. 01718_ Critical hit (Burn: +37). 01718_ Lgt. Nuclear Core destroyed. 01720_ Slammed into G-50 Soldier. 01725_ Particle Gun destroyed. 01726_ Slammed into G-50 Soldier. 01737_ ECM Suite destroyed. Map ----- +----------------------------------------------------+ | ???????????????????????????# #?????????? ?????? | | ????"""????????????????????# #?????????? ?????? | | ????"""??????????????"""""?# #?????????? ?????? | | ????"""?????? ???????"""""?# #????????? ?? #?? | | ????????????????#????"""""?# #???###???? ????? | | ?????????????????????"""""?+ #??? ##?###+###??? | | ?????????????????????"""""?# #""" #???# ??? | | ?????????????????????"""""?# #""" #??## #?#?# | | ?????????????????????"""""?# #""" +??? ##### | | ???????????????????????????# #""" #???# # | | ????????????????############ #""" ????# # "" | | ????????????????# """ "# # ?#??# # "T | | ?????????????????# "T" "%+ ###+####### # "" | | ?????????????????# "# # | | ?????????????????# # + "" | | ?????????????????# """ # # "" | | ?????????????????#!! """ # ###+######## ## "" | | ?????????????????#!! """ # ## #?## ## | | ?????????????????#! Y # ## !! ##?#[## | | ?????????????????#######g### ## !!! #??# ###### | | ?????????????????# g## ## !! #??# [ % | | ?????????????????# ## ## #?#####+### | | ?????????????????# ## ## ##?#[ ] [*# | | ?????????????????# # ########??# % # | | ?????????????????# # #?????##??# """# | | ?????????????????# @/ " ##?#???#??# """# | | ?????????????????# # #?????#?#?# """# | | ?????????????????# # #?##???#?## # | | ?????????????????# ### #??#??????######## | | ?????????????????##########??? ????????#????????# | | ???????????????????????????#?? ???????##????? ?? | | ????????????????????????????????????????#? ??????? | | ?????????????????????????????????????????????????? | | ????????????????????????????????????????????????? | | ????????????????????????????????????????????? ???? | | ????????????????????????????????????????#????????? | | ???????????????????????????????????????????????"?? | | ?????????????????????????????????????????????? ?? | | ?????????????????????????????????????????????????? | | ?????????????????????????????????????????????????? | | ?????????????????????????????????????????????????? | | ?????????????????????????????????????????????????? | | ?????????????????????????????????????????????????? | | ?????????????????????????????????????????????????? | | ?????????????????????????????????????????????????? | | ?????????????????????????????????????????????????? | | ?????????????????????????????????????????????????? | | ?????????????????????????????????????????????????? | | ?????????????????????????????????????????????????? | | ?????????????????????????????????????????????????? | +----------------------------------------------------+ Best States ------------- Heat Dissipation 42 Energy Generation 23 Energy Capacity 600 Matter Stores 300 Matter Capacity 300 Sight Range 16 Terrain Scan Range 16 Terrain Scan Density 10 ECM Strength 1 Armor Coverage 225 Evasion (%) 55 Recoil Reduction 2 Item Schematics ----------------- Grenade Launcher | -8/Materials | Scanalyzed Lrg. Battery | -8/Materials | Scanalyzed Robot Schematics ------------------ None Fabricated ------------ Nothing Repaired ---------- Nothing Studied --------- None Alien Tech Used ----------------- None Achievements -------------- It's Just You Challenges ------------ None Game ------ Seed TransmissionSigixMace Manual? 0 Play Time 00:26:43 Cumulative 2.1 hours Start 2026.06.21 @ 14:31:10 End 2026.06.21 @ 15:53:09 Sessions 3 Manual Loads 0 Difficulty Rogue Special Mode None Game No. 4 Rogue 4 Adventurer 0 Explorer 0 Win Type - Total 0 Types 0/0/0/0/0/0/0/0/0/0 Lore% 1 Gallery% 4 Achievement% 5 Wizard Run 0 Options --------- Layout 1 ASCII 0 Keyboard 0 Movement Mouse Keybinds 0 Fullscreen 1 Font 24/Smallcaps Map View 25x17 Zoom Use 29% Tactical HUD 1 Map Filters NONE Filters NONE Steam 1 RUN: 20cc194f-fec4-4089-905f-02ccdfb7907e